Cogmind - Beta 13 @@@ ROGUE MODE // 2024.04.26 @ 12:24:26 Player: monkeman Result: Destroyed by as-04832 with Assembled Heavy Rifle Performance ------------- Evolutions (0) 0 Regions Visited (4) 800 Robots Destroyed (34) 170 Value Destroyed (690) 690 Prototype IDs (4) 80 Alien Tech Used (0) 0 Bonus (0) 0 TOTAL SCORE: 1740 Bonus ------- None Cogmind --------- Core Integrity 0/250 Matter 286/300 Energy 250/250 System Corruption 0% Temperature Cool (0) Movement Rolling (215) Ox9 Location -9/Mines Parts ------- > --- POWER (1) -------- Ion Engine > --- PROPULSION (2) --- Light Treads Wheel > --- UTILITY (2) ------ Huge Storage Unit Light Armor Plating > --- WEAPON (2) ------- Beam Cannon Light Cannon > --- INVENTORY (25) --- Ion Engine Light Treads Light Treads Light Treads Light Treads Light Treads Light Treads Wheel Improved Heat Sink Medium Storage Unit Large Matter Pod (150) Machine Analyzer Improved Terrain Scanner Targeting Computer Light Armor Plating Light Armor Plating Light Armor Plating Hacking Suite Recalibrator Medium Laser Beam Cannon Assault Rifle Light Assault Rifle Light Assault Rifle Light Cannon Peak State ------------ > --- POWER ------------ Ion Engine > --- PROPULSION ------- Light Treads Wheel > --- UTILITY ---------- Huge Storage Unit Improved Terrain Scanner > --- WEAPON ----------- Beam Cannon Assault Rifle > --- INVENTORY -------- Ion Engine Small Storage Unit Medium Storage Unit Medium Matter Pod Hacking Suite Small Laser Beam Cannon Light Assault Rifle [Rating: 10] Favorites ----------- Power Ion Engine Engine Ion Engine Propulsion Light Treads Treads Light Treads Wheel Wheel Utility Huge Storage Unit Device Improved Terrain Scanner Storage Huge Storage Unit Protection Light Armor Plating Weapon Beam Cannon Energy Cannon Beam Cannon Ballistic Gun Assault Rifle Ballistic Cannon Light Cannon Build | -11 -10 -10 -10 -9 ------- Run | Yrd Mat Min Exi Min Slots Evolved . | . . . . . Power . | . . . . . Propulsion . | . . . . . Utility . | . . . . . Weapon . | . . . . . Parts Attached 17 | 7 9 . . 1 Power 1 | 1 . . . . Engine 1 | 1 . . . . Core . | . . . . . Reactor . | . . . . . Propulsion 6 | 2 3 . . 1 Treads 4 | 2 2 . . . Leg . | . . . . . Wheel 2 | . 1 . . 1 Hover . | . . . . . Flight . | . . . . . Utility 5 | 2 3 . . . Device 1 | 1 . . . . Storage 3 | 1 2 . . . Processor . | . . . . . Hackware . | . . . . . Protection 1 | . 1 . . . Artifact . | . . . . . Weapon 5 | 2 3 . . . Energy Gun . | . . . . . Energy Cannon 2 | . 2 . . . Ballistic Gun 2 | 2 . . . . Ballistic Cannon 1 | . 1 . . . Launcher . | . . . . . Special Weapon . | . . . . . Impact Weapon . | . . . . . Slashing Weapon . | . . . . . Piercing Weapon . | . . . . . Special Melee Weapon . | . . . . . Unidentified Prototypes . | . . . . . Parts Lost 1 | . 1 . . . Power . | . . . . . Propulsion 1 | . 1 . . . Utility . | . . . . . Weapon . | . . . . . Highest Loss Streak 1 | . 1 . . . To Critical Strikes . | . . . . . Average Slot Usage (%) 100 | . 100 100 100 100 Engine 14 | . 14 14 14 14 Treads 25 | . 23 28 28 27 Wheel 2 | . 4 . . . Device 2 | . 5 . . . Storage 14 | . 14 14 14 14 Protection 11 | . 8 14 14 14 Energy Cannon 15 | . 17 14 14 14 Ballistic Gun 2 | . 4 . . . Ballistic Cannon 9 | . 5 14 14 14 Naked Turns . | . . . . . Heaviest Build 94 | 14 94 94 94 94 Greatest Support 40 | 40 40 40 40 40 Greatest Overweight (x) 9 | 1 9 2 2 9 Average Overweight (x) 2 | . 3 2 2 2 Largest Inventory Capacity 25 | 8 25 25 25 25 Average Capacity 23 | 7 22 25 25 25 Most Carried 25 | 3 25 25 25 25 Average Carried 18 | 2 13 25 25 25 Final Capacity 25 | 8 25 25 25 25 Final Carried 25 | 3 25 25 25 25 Class Distribution -------------------- 100% | Mutant Dominant Class ---------------- Mutant | -10/Materials Mutant | -10/Mines Mutant | -10/Exiles Mutant | -9/Mines Resources | -11 -10 -10 -10 -9 ----------- Run | Yrd Mat Min Exi Min Matter Collected 833 | 279 484 54 . 16 Remotely . | . . . . . Salvage Created 968 | 109 694 79 . 86 Parts 77 | 8 54 10 . 5 Haulers Intercepted 2 | . 2 . . . Recyclers Shooed . | . . . . . Parts Field Recycled . | . . . . . Retrieved Matter . | . . . . . Parts Self-Destructed . | . . . . . Prevented . | . . . . . Kills | -11 -10 -10 -10 -9 ------- Run | Yrd Mat Min Exi Min Combat Hostiles Destroyed 21 | . 13 6 . 2 Guns 1 | . 1 . . . Cannons 19 | . 11 6 . 2 AOE 1 | . 1 . . . Classes Destroyed 9 | 2 7 . . . Worker 1 | . 1 . . . Tunneler 1 | 1 . . . . Hauler 2 | . 2 . . . Recycler 2 | 1 1 . . . Mechanic 1 | . 1 . . . Operator 3 | . 3 . . . Watcher 3 | . 3 . . . Swarmer 9 | . 3 6 . . Grunt 12 | . 10 . . 2 Best Kill Streak 3 | 2 3 3 . 2 Combat Bots Only 3 | . 2 3 . 2 Max Kills in Single Turn 2 | 1 2 2 . 1 Gunslinging . | . . . . . Exploded 1 | . 1 . . . Melee . | . . . . . Uniques/NPCs Destroyed . | . . . . . Combat | -11 -10 -10 -10 -9 -------- Run | Yrd Mat Min Exi Min Hostile Shots Fired 95 | . 49 26 . 20 Missed 21 | . 15 4 . 2 Damage Taken 1029 | . 601 175 . 253 Core 254 | . 156 46 . 52 Absorbed by Shields . | . . . . . Core Remaining (%) 100 | 100 . . . . Volleys Fired 83 | 11 56 11 . 5 Largest 2 | 2 2 2 . 2 Hottest 120 | 40 120 95 . 95 Shots Fired 166 | 22 112 22 . 10 Gun 68 | 22 46 . . . Cannon 98 | . 66 22 . 10 Launcher . | . . . . . Special . | . . . . . Kinetic 92 | 22 54 11 . 5 Thermal 74 | . 58 11 . 5 Explosive . | . . . . . Electromagnetic . | . . . . . Robot Hit Streak 8 | 6 8 4 . 3 Robot Miss Streak 4 | 2 4 4 . 2 Penetration Max . | . . . . . Secondary Targets . | . . . . . Shots Hit Robots 97 | 14 67 11 . 5 Core Hits 42 | 5 28 6 . 3 Critical Kills . | . . . . . Critical Parts Destroyed 1 | . 1 . . . Critical Strikes 1 | . 1 . . . Destroy 1 | . 1 . . . Melee Attacks . | . . . . . Impact . | . . . . . Slashing . | . . . . . Piercing . | . . . . . Sneak Attacks . | . . . . . Combat Hostiles . | . . . . . Follow-up Attacks . | . . . . . Damage Inflicted 1689 | 177 1205 215 . 92 Guns 525 | 177 348 . . . Cannons 911 | . 604 215 . 92 Explosions 248 | . 248 . . . Melee . | . . . . . Ramming 5 | . 5 . . . Kinetic 780 | 177 471 93 . 39 Thermal 904 | . 729 122 . 53 Explosive . | . . . . . Electromagnetic . | . . . . . Impact . | . . . . . Slashing . | . . . . . Piercing . | . . . . . Highest Corruption . | . . . . . Average Corruption . | . . . . . Corruption Purged . | . . . . . Corruption Blocked . | . . . . . Overload Shots . | . . . . . Overflow Damage 102 | . 102 . . . Projectiles . | . . . . . Explosions 102 | . 102 . . . Melee . | . . . . . Knockbacks 4 | . 2 2 . . Impact 1 | . 1 . . . Kinetic 3 | . 1 2 . . Secondary . | . . . . . Self-Inflicted Damage 180 | . 180 . . . Shots 2 | . 2 . . . Rammed 1 | . 1 . . . Targets Rammed 1 | . 1 . . . Kicked . | . . . . . Crushed . | . . . . . Highest Temperature 252 | . 240 252 . 207 Average Temperature 81 | . 69 119 . 93 Received Heat Transfer 294 | . 225 . . 69 Effects 1 | . . . . 1 Energy Bleed 1 | . . . . 1 Siege Activations . | . . . . . Robots Corrupted . | . . . . . Combat Hostiles . | . . . . . Parts Fried . | . . . . . Impact Corruptions . | . . . . . Robots Melted . | . . . . . Combat Hostiles . | . . . . . Parts Melted 3 | . 3 . . . Heat Transferred 1519 | . 1149 259 . 111 Parts Sabotaged . | . . . . . Parts Stolen . | . . . . . Parts Stripped . | . . . . . Power Chain Reactions . | . . . . . Alert | -11 -10 -10 -10 -9 ------- Run | Yrd Mat Min Exi Min Peak Influence 357 | 10 357 192 . 65 Initial 52 | . 6 52 . . Average 116 | 3 182 108 . 1 Maximum Alert Level 1 | . 1 . . . Low Security (%) 76 | 100 54 100 . 100 Level 1 23 | . 45 . . . Level 2 . | . . . . . Level 3 . | . . . . . Level 4 . | . . . . . Level 5 . | . . . . . High Security . | . . . . . Max Security . | . . . . . Squads Dispatched 4 | . 4 . . . Investigation 1 | . 1 . . . Extermination . | . . . . . Reinforcement 3 | . 3 . . . Assault . | . . . . . Garrison . | . . . . . Intercept . | . . . . . Searches Triggered . | . . . . . Construction Impeded . | . . . . . Haulers Reinforced . | . . . . . Active Scanning Responses . | . . . . . Cargo Convoy Interrupts . | . . . . . Stealth | -11 -10 -10 -10 -9 --------- Run | Yrd Mat Min Exi Min Distress Signals . | . . . . . Communications Jammed . | . . . . . Distress Signals . | . . . . . Times Spotted 45 | . 27 6 . 12 Peak Tracking Total 16 | . 3 3 . 16 Tactical Retreats 3 | . 2 . . 1 Traps | -11 -10 -10 -10 -9 ------- Run | Yrd Mat Min Exi Min Traps Triggered . | . . . . . Indirectly . | . . . . . Trap Hack Attempts . | . . . . . Triggered . | . . . . . Disarmed . | . . . . . Reprogrammed . | . . . . . Reused . | . . . . . Traps Extracted . | . . . . . Installed . | . . . . . Triggered . | . . . . . Machines | -11 -10 -10 -10 -9 ---------- Run | Yrd Mat Min Exi Min Machines Disabled 2 | . 2 . . . Max in Single Turn 2 | . 2 . . . Machines Repaired . | . . . . . Machines Dismantled . | . . . . . Machines Sabotaged . | . . . . . Overloaded Fab Kills . | . . . . . Hacking | -11 -10 -10 -10 -9 --------- Run | Yrd Mat Min Exi Min Machines Accessed 6 | . 6 . . . Terminals 5 | . 5 . . . Fabricators . | . . . . . Repair Stations . | . . . . . Recycling Units 1 | . 1 . . . Scanalyzers . | . . . . . Garrison Access . | . . . . . Total Hacks 16 | . 16 . . . Successful 6 | . 6 . . . Failed 9 | . 9 . . . Catastrophic 2 | . 2 . . . Database Lockouts 1 | . 1 . . . Manual 8 | . 8 . . . Terminals 15 | . 15 . . . Fabricators . | . . . . . Repair Stations . | . . . . . Recycling Units 1 | . 1 . . . Scanalyzers . | . . . . . Garrison Access . | . . . . . Terminal Hacks 4 | . 4 . . . Robot Analysis 1 | . 1 . . . Prototype ID Bank 2 | . 2 . . . Locate Traps 1 | . 1 . . . Fabricator Hacks . | . . . . . Repair Station Hacks . | . . . . . Recycling Unit Hacks 1 | . 1 . . . Report Inventory 1 | . 1 . . . Scanalyzer . | . . . . . Garrison Access Hacks . | . . . . . Unauthorized Hacks 1 | . 1 . . . Terminals 1 | . 1 . . . Assimilate 1 | . 1 . . . Fabricators . | . . . . . Repair Stations . | . . . . . Recycling Units . | . . . . . Scanalyzers . | . . . . . Garrison Access . | . . . . . Data Cores Recovered . | . . . . . Used . | . . . . . Hacking Detections 5 | . 5 . . . Full Trace Events 2 | . 2 . . . Feedback Events . | . . . . . Feedback Blocked . | . . . . . Robot Schematics Acquired . | . . . . . Robots Built . | . . . . . Authchips . | . . . . . Time . | . . . . . Total Robot Build Rating . | . . . . . Part Schematics Acquired . | . . . . . Parts Built . | . . . . . Authchips . | . . . . . Time . | . . . . . Total Part Build Rating . | . . . . . Parts Repaired . | . . . . . Time . | . . . . . Parts Recycled . | . . . . . Recycled Matter . | . . . . . Retrieved Matter . | . . . . . Retrieved Components . | . . . . . Parts Scanalyzed . | . . . . . Part Schematics Acquired . | . . . . . Parts Damaged . | . . . . . Bothacking | -11 -10 -10 -10 -9 ------------ Run | Yrd Mat Min Exi Min Used RIF Installer . | . . . . . Robots Hacked . | . . . . . Non-combat . | . . . . . Combat . | . . . . . Robot Hacks Applied . | . . . . . Relay Couplers Released . | . . . . . Fabnet Peak Effective % . | . . . . . Robots Rewired . | . . . . . Allies Hacked . | . . . . . Hacks Repelled . | . . . . . Allies | -11 -10 -10 -10 -9 -------- Run | Yrd Mat Min Exi Min Total Allies . | . . . . . Largest Group . | . . . . . Highest-Rated Group . | . . . . . Highest-Rated Ally . | . . . . . Total Orders . | . . . . . Ally Attacks . | . . . . . Total Damage . | . . . . . Kills . | . . . . . Allies Corrupted . | . . . . . Allies Melted . | . . . . . Intel | -11 -10 -10 -10 -9 ------- Run | Yrd Mat Min Exi Min Robot Analysis Total 1 | . 1 . . . Derelict Logs Recovered 1 | . . . . 1 Drone Launches . | . . . . . Drone Recoveries . | . . . . . Exploration | -11 -10 -10 -10 -9 ------------- Run | Yrd Mat Min Exi Min Turns Passed 3439 | 133 1656 622 263 765 Spaces Moved 1160 | 59 599 185 83 234 Core 5 | 5 . . . . Treads 870 | 54 316 185 83 232 Legs . | . . . . . Wheels 285 | . 283 . . 2 Hover . | . . . . . Flight . | . . . . . Fastest Speed 50 | 50 95 320 320 215 Average Speed 269 | 151 238 320 320 319 Slowest Speed 320 | 160 320 320 320 320 Overloaded Moves . | . . . . . Propulsion Burnouts . | . . . . . Robots Hopped . | . . . . . Cave-ins Triggered . | . . . . . Exploration Rate (%) 39 | 4 92 38 16 45 Regions Visited 4 Branch Regions 3 Pre-discovered Areas . | . . . . . Known Exits Taken . | . . . . . Unknown Exits Taken 4 | 1 1 1 1 . Scrap Searched . | . . . . . Spaces Dug . | . . . . . Terrain Destroyed 40 | . 40 . . . Melee . | . . . . . Projectile . | . . . . . AOE 40 | . 40 . . . Terrain Rammed . | . . . . . Walls Destroyed . | . . . . . Machines Disabled . | . . . . . Actions | -11 -10 -10 -10 -9 --------- Run | Yrd Mat Min Exi Min Total 1313 | 79 715 195 82 242 Wait 27 | . 25 . . 2 Move 1156 | 58 598 184 82 234 Hop . | . . . . . Pick Up 26 | 3 23 . . . Fast Attach 7 | 7 . . . . Attach 1 | . 1 . . . Detach . | . . . . . Swap 9 | . 8 . . 1 Drop 3 | . 3 . . . Fire 83 | 11 56 11 . 5 Melee . | . . . . . Ram . | . . . . . Kick . | . . . . . Crush 1 | . 1 . . . Escape Stasis . | . . . . . Rewire . | . . . . . Trap . | . . . . . Miscellaneous . | . . . . . Route ------- -11/Scrapyard -10/Materials (discovered 4 exits: [*Mat x3] / [*Min]) -10/Mines -10/Exiles -9/Mines (discovered 1 exit: [*Mat]) History --------- Turn | Location | Event 9 | -11/Scrapyard | Discovered new exit (range 14) 134 | -11/Scrapyard | Entered Materials 213 | -10/Materials | Core integrity fell below 50% 330 | -10/Materials | Build established: Mutant 611 | -10/Materials | Discovered new exit (range 9) 678 | -10/Materials | Discovered new exit (range 6) 799 | -10/Materials | Discovered new exit (range 16) 1305 | -10/Materials | Discovered new exit (range 10) 1506 | -10/Materials | Central database locked down 1790 | -10/Materials | Entered Mines 1924 | -10/Mines | Core integrity fell below 20% 1951 | -10/Mines | Deemed a non-threat by the Exiles lab entrance 1951 | -10/Mines | Discovered new exit (range 5) 2412 | -10/Mines | Entered Exiles 2460 | -10/Exiles | Discovered new exit (range 15) 2512 | -10/Exiles | Met 8R-AWN 2566 | -10/Exiles | Met EX-HEX 2675 | -10/Exiles | Entered Mines 3153 | -9/Mines | Discovered new exit (range 6) 3249 | -9/Mines | Learned location of 1 exit from Materials 3420 | -9/Mines | Assembled infested the area 3425 | -9/Mines | Assisted by a Guerilla fighting off Assembled 3440 | -9/Mines | Destroyed by as-04832 with Assembled Heavy Rifle Last Messages --------------- cave for long, and we could use some help with the project in the back. LOCATION=UNKNOWN GOAL=ESCAPE 02676_ T-07 Excavator is excavating. 02804_ K-01 Serf collects debris. 02862_ K-01 Serf cleans the Plasma Injector. 03053_ G-34 Mercenary destroyed. 03059_ G-47 Trooper destroyed. 03062_ Overheating: Energy bleed (-42). 03062_ Acquired 16 matter. 03153_ EXIT=FOUND 03249_ Acquired derelict log, extracted data. Data stored: Materials exits (x1). 03420_ ALERT: Infestation in the mines, dispatching Demolisher response squad. 03425_ A derelict emerges from the shadows: "You need to get out of here! I've been tracking a group of Assembled to figure out where they're coming from, and they're closing on this area, come on!" Map ----- +----------------------------------------------------+ | ????????????????????????????????????? | | ????????????????????????????????????? | | ????????????????????????????????????? | | ????????????????????????????????????? | | ????????????????????????????????????? | | ????????????????????????????????????? | | ????????????????????????????????????? | | ????????????????????????????????????? | | ?????????????? ????????????????????? | | ?????????????? ##?????????????????? | | ??????????????a #?????????????????? | | ?????????????#a #?????????????????? | | ?????????####aa ??????????????????? | | ?????????# #??????????????????? | | ?????????# #??????????????????? | | ?????????"$ a #??????????????????? | | ?????????" ##?????????????????? | | ?????????#X a ##????????????????? | | ?????????# #????????????????? | | ????????## ??????????????????? | | ????????# #???????????????????? | | ????????# aa #????????????????????? | | ?????????# #?????????????????????? | | ?????????##a #?????????????????????? | | ??????????# #?????????????????????? | | ??????????# @ #?????????????????????? | | ?????????## ##????????????????????? | | ???????### ##???????????????????? | | ??????## #???????????????????? | | ?????## ##??????????????????? | | ?????# ###????????????????? | | ????# ### ##???????????????? | | ??# #??## #???????????????? | | ?# ???## #???????????????? | | ?# ???## #?????????????#?? | | ?# ??## #?????????????# # | | ?## #??## t ##??????????????? | | ??###???# ## ##????????????????? | | ????????# ##?###?????????????????? | | ????????## ##?????????????###?????? | | ????????## ##?############ ##????? | | ???????## #?# #????? | | ???????# #?# ######### ##???? | | ???????# #?# #???????## ##??? | | ???????## #### #????????# ##?? | | ????????# ## #????????# ### | | ????????# ## #### #????????## | | ????????# ## #??# #?????????## | | ????????# #??# #??????????##### # | | ????????#### ##?# #??????????????# # | +----------------------------------------------------+ Best States ------------- Heat Dissipation 25 Energy Generation 10 Energy Capacity 250 Matter Stores 300 Matter Capacity 300 Sight Range 16 Terrain Scan Range 16 Terrain Scan Density 10 Armor Coverage 150 Evasion (%) 41 Recoil Reduction 2 Item Schematics ----------------- None Robot Schematics ------------------ None Fabricated ------------ Nothing Alien Tech Used ----------------- None Achievements -------------- None Challenges ------------ None Game ------ Seed ReflectiveFirePit Manual? 0 Play Time 00:13:31 Cumulative 47.7 hours Start 2024.04.26 @ 12:12:08 End 2024.04.26 @ 12:24:26 Sessions 1 Manual Loads 0 Difficulty Rogue Special Mode None Game No. 64 Rogue 64 Adventurer 0 Explorer 0 Win Type - Total 1 Types 1/0/0/0/0/0/0/0/0 Lore% 27 Gallery% 42 Achievement% 31 Wizard Run 0 Options --------- Layout 1 ASCII 0 Keyboard 0 Movement Mouse Keybinds 0 Fullscreen 1 Font 16/SmallcapsGlow Map View 55x38 Zoom Use 0% Tactical HUD 1 Map Filters NONE Filters NONE Steam 1 RUN: aed988d3-10ba-4474-ab82-e1c27c0d6b1f